Cogmind - Beta 9.4 @@@ ROGUE MODE // 2020.01.08 @ 23:13:00 // Winter2019/RPGLIKE Player: delet0r Result: Destroyed by Y-45 Defender with Beam Rifle Performance ------------- Evolutions (1) 500 Regions Visited (2) 400 Robots Destroyed (15) 75 Value Destroyed (304) 304 Prototype IDs (0) 0 Alien Tech Used (0) 0 Bonus (0) 0 TOTAL SCORE: 1279 Bonus ------- None Cogmind --------- Core Integrity 0/700 Matter 395/400 Energy 245/250 System Corruption 0% Temperature Cool (15) Movement Core (50) Location -9/Materials Parts ------- > --- POWER (1) -------- Ion Engine > --- PROPULSION (1) --- (None) > --- UTILITY (1) ------ Medium Matter Pod > --- WEAPON (1) ------- Mace > --- INVENTORY (0) ---- (None) Peak State ------------ > --- POWER ------------ Ion Engine > --- PROPULSION ------- Flight Unit > --- UTILITY ---------- Medium Matter Pod > --- WEAPON ----------- Mace > --- INVENTORY -------- (None) [Rating: 5] Favorites ----------- Power Ion Engine Engine Ion Engine Propulsion Flight Unit Leg Aluminum Leg Wheel Wheel Hover Unit Hover Unit Flight Unit Flight Unit Utility Medium Matter Pod Storage Medium Matter Pod Weapon EM Pulse Gun Energy Gun EM Pulse Gun Impact Weapon Mace Build | -11 -10 -9 ------- Run | Scr Mat Mat Slots Evolved . | . . . Power . | . . . Propulsion . | . . . Utility . | . . . Weapon . | . . . Parts Attached 9 | 3 5 1 Power 1 | . 1 . Engine 1 | . 1 . Core . | . . . Reactor . | . . . Propulsion 4 | 2 2 . Treads . | . . . Leg 1 | 1 . . Wheel 1 | 1 . . Hover 1 | . 1 . Flight 1 | . 1 . Utility 1 | . 1 . Device . | . . . Storage 1 | . 1 . Processor . | . . . Hackware . | . . . Protection . | . . . Artifact . | . . . Weapon 3 | 1 1 1 Energy Gun 2 | 1 1 . Energy Cannon . | . . . Ballistic Gun . | . . . Ballistic Cannon . | . . . Launcher . | . . . Special Weapon . | . . . Impact Weapon 1 | . . 1 Slashing Weapon . | . . . Piercing Weapon . | . . . Special Melee Weapon . | . . . Unidentified Prototypes . | . . . Parts Lost 2 | . 1 1 Power . | . . . Propulsion 1 | . . 1 Utility . | . . . Weapon 1 | . 1 . Highest Loss Streak 1 | . 1 1 Average Slot Usage (%) 80 | . 69 96 Engine 21 | . 18 25 Hover 8 | . 13 . Flight 14 | . 9 21 Storage 11 | . 3 25 Energy Gun 19 | . 23 11 Impact Weapon 5 | . . 13 Naked Turns . | . . . Heaviest Build 9 | 2 9 9 Greatest Support 16 | 10 16 14 Greatest Overweight (x) . | . . . Average Overweight (x) . | . . . Largest Inventory Capacity . | . . . Average Capacity . | . . . Most Carried . | . . . Average Carried . | . . . Final Capacity . | . . . Final Carried . | . . . Class Distribution -------------------- 100% | Mutant Dominant Class ---------------- Mutant | -10/Materials Mutant | -9/Materials Resources | -11 -10 -9 ----------- Run | Scr Mat Mat Matter Collected 375 | 230 135 10 Remotely . | . . . Salvage Created 442 | . 268 174 Parts 23 | . 14 9 Haulers Intercepted 2 | . 2 . Recyclers Shooed . | . . . Parts Field Recycled . | . . . Retrieved Matter . | . . . Parts Self-Destructed . | . . . Prevented . | . . . Kills | -11 -10 -9 ------- Run | Scr Mat Mat Combat Hostiles Destroyed 13 | . 6 7 Melee 2 | . . 2 Guns 10 | . 6 4 Classes Destroyed 3 | . 3 . Hauler 2 | . 2 . Swarmer 7 | . 3 4 Grunt 6 | . 3 3 Best Kill Streak 6 | . 6 4 Combat Bots Only 6 | . 6 4 Max Kills in Single Turn 1 | . 1 1 Gunslinging . | . . . Exploded . | . . . Melee 1 | . . 1 Uniques/NPCs Destroyed . | . . . Combat | -11 -10 -9 -------- Run | Scr Mat Mat Damage Taken 1036 | . 399 637 Core 887 | . 325 562 Absorbed by Shields . | . . . Redirected to Core 486 | . 243 243 Core Remaining (%) 86 | 100 72 . Volleys Fired 45 | . 36 9 Largest 1 | . 1 1 Hottest 40 | . 40 40 Shots Fired 45 | . 36 9 Gun 45 | . 36 9 Cannon . | . . . Launcher . | . . . Special . | . . . Kinetic . | . . . Thermal . | . . . Explosive . | . . . Electromagnetic 45 | . 36 9 Robot Hit Streak 7 | . 7 3 Robot Miss Streak 4 | . 4 2 Penetration Max . | . . . Secondary Targets . | . . . Shots Hit Robots 47 | . 26 21 Core Hits 20 | . 14 6 Critical Hits . | . . . Critical Kills . | . . . Critical Parts Destroyed . | . . . Melee Attacks 19 | . . 19 Impact 19 | . . 19 Slashing . | . . . Piercing . | . . . Sneak Attacks . | . . . Combat Hostiles . | . . . Follow-up Attacks . | . . . Damage Inflicted 899 | . 547 352 Guns 421 | . 365 56 Cannons . | . . . Explosions 178 | . 178 . Melee 296 | . . 296 Ramming 4 | . 4 . Kinetic . | . . . Thermal 178 | . 178 . Explosive . | . . . Electromagnetic 421 | . 365 56 Impact 296 | . . 296 Slashing . | . . . Piercing . | . . . Highest Corruption . | . . . Average Corruption . | . . . Corruption Purged . | . . . Overload Shots . | . . . Overflow Damage 4 | . . 4 Projectiles . | . . . Explosions . | . . . Melee 4 | . . 4 Knockbacks 1 | . . 1 Impact 1 | . . 1 Kinetic . | . . . Secondary . | . . . Self-Inflicted Damage 83 | . 83 . Shots 2 | . 2 . Rammed 1 | . 1 . Targets Rammed 1 | . 1 . Kicked . | . . . Crushed . | . . . Highest Temperature 117 | . 117 35 Average Temperature 25 | . 26 23 Received Heat Transfer 405 | . 153 252 Siege Activations . | . . . Robots Corrupted . | . . . Combat Hostiles . | . . . Parts Fried 1 | . . 1 Impact Corruptions 1 | . . 1 Robots Melted . | . . . Combat Hostiles . | . . . Parts Melted . | . . . Heat Transferred 250 | . 250 . Parts Sabotaged . | . . . Parts Stolen . | . . . Parts Stripped . | . . . Power Chain Reactions 3 | . 3 . Missiles Intercepted . | . . . Alert | -11 -10 -9 ------- Run | Scr Mat Mat Peak Influence 268 | . 184 268 Average Influence 111 | . 84 174 Maximum Alert Level 1 | . . 1 Low Security (%) 90 | 100 100 74 Level 1 9 | . . 25 Level 2 . | . . . Level 3 . | . . . Level 4 . | . . . Level 5 . | . . . High Security . | . . . Max Security . | . . . Squads Dispatched 2 | . 1 1 Investigation . | . . . Extermination . | . . . Reinforcement 2 | . 1 1 Assault . | . . . Garrison . | . . . Intercept . | . . . Construction Impeded . | . . . Haulers Reinforced . | . . . Stealth | -11 -10 -9 --------- Run | Scr Mat Mat Distress Signals 3 | . 2 1 Communications Jammed . | . . . Distress Signals . | . . . Times Spotted 28 | . 12 16 Peak Tracking Total 9 | . 5 9 Tactical Retreats . | . . . Traps | -11 -10 -9 ------- Run | Scr Mat Mat Traps Triggered . | . . . Indirectly . | . . . Trap Hack Attempts . | . . . Triggered . | . . . Disarmed . | . . . Reprogrammed . | . . . Reused . | . . . Traps Extracted . | . . . Installed . | . . . Triggered . | . . . Machines | -11 -10 -9 ---------- Run | Scr Mat Mat Machines Disabled . | . . . Max in Single Turn . | . . . Machines Sabotaged . | . . . Garrisons Compromised . | . . . Overloaded Fab Kills . | . . . Fab Network Shutdowns . | . . . Hacking | -11 -10 -9 --------- Run | Scr Mat Mat Machines Accessed 1 | . 1 . Terminals 1 | . 1 . Fabricators . | . . . Repair Stations . | . . . Recycling Units . | . . . Scanalyzers . | . . . Garrison Access . | . . . Total Hacks 1 | . 1 . Successful . | . . . Failed 1 | . 1 . Catastrophic . | . . . Database Lockouts . | . . . Manual . | . . . Terminals 1 | . 1 . Fabricators . | . . . Repair Stations . | . . . Recycling Units . | . . . Scanalyzers . | . . . Garrison Access . | . . . Terminal Hacks . | . . . Fabricator Hacks . | . . . Repair Station Hacks . | . . . Recycling Unit Hacks . | . . . Scanalyzer . | . . . Garrison Access Hacks . | . . . Unauthorized Hacks . | . . . Terminals . | . . . Fabricators . | . . . Repair Stations . | . . . Recycling Units . | . . . Scanalyzers . | . . . Garrison Access . | . . . Data Cores Recovered . | . . . Used . | . . . Hacking Detections 1 | . 1 . Full Trace Events . | . . . Feedback Events . | . . . Feedback Blocked . | . . . Robot Schematics Acquired . | . . . Robots Built . | . . . Matter . | . . . Time . | . . . Total Robot Build Rating . | . . . Part Schematics Acquired . | . . . Parts Built . | . . . Matter . | . . . Time . | . . . Total Part Build Rating . | . . . Parts Repaired . | . . . Time . | . . . Parts Recycled . | . . . Recycled Matter . | . . . Retrieved Matter . | . . . Retrieved Components . | . . . Parts Scanalyzed . | . . . Part Schematics Acquired . | . . . Parts Damaged . | . . . Bothacking | -11 -10 -9 ------------ Run | Scr Mat Mat Used RIF Installer . | . . . Robots Hacked . | . . . Non-combat . | . . . Combat . | . . . Robot Hacks Applied . | . . . Relay Couplers Released . | . . . Robots Rewired . | . . . Allies Hacked . | . . . Hacks Repelled . | . . . Allies | -11 -10 -9 -------- Run | Scr Mat Mat Total Allies . | . . . Largest Group . | . . . Highest-Rated Group . | . . . Highest-Rated Ally . | . . . Total Orders . | . . . Ally Attacks . | . . . Total Damage . | . . . Kills . | . . . Allies Corrupted . | . . . Allies Melted . | . . . Intel | -11 -10 -9 ------- Run | Scr Mat Mat Robot Analysis Total . | . . . Derelict Logs Recovered . | . . . Drone Launches . | . . . Drone Recoveries . | . . . Exploration | -11 -10 -9 ------------- Run | Scr Mat Mat Turns Passed 416 | 28 238 150 Spaces Moved 482 | 34 244 204 Core 22 | 14 . 8 Treads . | . . . Legs . | . . . Wheels 26 | 20 6 . Hover 129 | . 129 . Flight 305 | . 109 196 Fastest Speed 40 | 50 40 40 Average Speed 47 | 67 51 40 Slowest Speed 80 | 80 80 50 Overloaded Moves . | . . . Propulsion Burnouts . | . . . Robots Hopped 2 | . 2 . Cave-ins Triggered . | . . . Exploration Rate (%) 23 | 3 42 24 Regions Visited 2 Branch Regions . Pre-discovered Areas . | . . . Known Exits Taken . | . . . Unknown Exits Taken 2 | 1 1 . Scrap Searched . | . . . Spaces Dug . | . . . Terrain Destroyed 8 | . 8 . Melee . | . . . Projectile . | . . . AOE 8 | . 8 . Actions | -11 -10 -9 --------- Run | Scr Mat Mat Total 589 | 37 316 236 Wait 24 | . 23 1 Move 476 | 33 239 204 Hop 2 | . 2 . Pick Up . | . . . Fast Attach 9 | 3 5 1 Attach . | . . . Detach . | . . . Swap . | . . . Drop 4 | 1 2 1 Fire 45 | . 36 9 Melee 19 | . . 19 Ram 1 | . 1 . Kick . | . . . Crush . | . . . Escape Stasis . | . . . Rewire . | . . . Trap . | . . . Miscellaneous 9 | . 8 1 Route ------- -11/Scrapyard -10/Materials (discovered 2 exits: [*Mat] / [*Min]) -9/Materials (discovered 2 exits: [*Min] / [*Sto]) History --------- Turn | Location | Event 17 | -11/Scrapyard | Discovered new exit (range 12) 29 | -11/Scrapyard | Entered Materials 47 | -10/Materials | Discovered new exit (range 14) 261 | -10/Materials | Discovered new exit (range 12) 267 | -10/Materials | Entered another Materials area 269 | -9/Materials | Reached level 2 284 | -9/Materials | Discovered new exit (range 10) 318 | -9/Materials | Build established: Mutant 369 | -9/Materials | Discovered new exit (range 8) 378 | -9/Materials | Core integrity fell below 50% 398 | -9/Materials | Reached level 3 411 | -9/Materials | Core integrity fell below 20% 417 | -9/Materials | Destroyed by Y-45 Defender with Beam Rifle Last Messages --------------- 00379_ Upgraded: Melee Accuracy (+20) 00379_ G-47 Trooper destroyed. 00385_ G-34 Mercenary knocked back. 00385_ R-06 Scavenger collects Imp. Heat Sink. 00388_ Destroyed Sml. Laser. 00388_ G-34 Mercenary system corrupted by crushing effect. 00389_ G-34 Mercenary system terminally corrupted. 00389_ Heat Sink fried. 00390_ R-06 Scavenger collects Particle Gun. 00393_ R-06 Scavenger collects Aluminum Leg. 00396_ Flight Unit destroyed. 00397_ R-06 Scavenger collects Aluminum Leg. 00398_ Reached level 3. 00398_ G-34 Mercenary destroyed. 00400_ R-06 Scavenger collects Ion Engine. 00411_ S-10 Pest destroyed. 00412_ K-01 Serf cleans the Machine. 00414_ R-06 Scavenger collects Flight Unit. 00416_ R-06 Scavenger collects Lgt. Assault Rifle. 00416_ K-01 Serf collects debris. Map ----- +----------------------------------------------------+ | ?????????????????????????????????????????????????? | | ?????????????????????????????????????????????????? | | ??????????????????????????????????????########???? | | ??????????????????????????????????????# #???? | | ??????????????????????????????????????#""" [#???? | | ??????????????????????????????????????#""" ####+ | | ??????????????????????????????????????#""" / # | | ??????????????????????????????????????#""" # | | ???????????????????? ???????????????# # | | ???????????????????? ???????????????#####+##? | | ?????????????? ???+ ???????????????????# #?? | | ??????????????? ??# #??????????????????# #???" | | ??????????????= ??# #????????????####??# #???" | | ??????????????? ?# ##########??# """ ?# #???? | | ???????????????? ?# # #??# """ ?# #???? | | ????????????????#/## # """ #??# """ # #????# | | ????????????????# # """ #??# # #????# | | ????????????????# # """ [#??# + #????# | | ????????????????# # #??# # #????# | | ????????????????# # """ #??######## ###### | | ????????????????# # """ ########## | | ????????????????# # """ + | | ????????????????# % # ] ########## | | ????????????????# #####+####????????# ##### | | ????????????????# %gsr r ############ #???# | | ????????????????# rs@ + # #?? | | ????????????????# s% kY ## # # | | ????????????????###+####### ## # # " | | ??????????????????????????# ## + + ! " | | ?????????????????????????"" # """"" # # " | | ????????????????????????" # """"" # # | | ???????????????????????#"| # """"" # # | | ???????????????????????#"" < # # # ? | | ???????????????????????#"! ########### ##### | | ???????????????????????#" #?????????# | | ????????????????????????""" #?????????# | | ???????????????????????#### ##?????????# | | ??????????????????????????# #??????????####+#### | | ??????????????????????????# #??????????????????? | | ??????????????????????????# #??????????????????? | | ??????????????????????????? ???????????????????? | | ?????????????????????????????????????????????????? | | ?????????????????????????????????????????????????? | | ?????????????????????????????????????????????????? | | ?????????????????????????????????????????????????? | | ?????????????????????????????????????????????????? | | ?????????????????????????????????????????????????? | | ?????????????????????????????????????????????????? | | ?????????????????????????????????????????????????? | | ?????????????????????????????????????????????????? | +----------------------------------------------------+ Best States ------------- Heat Dissipation 25 Energy Generation 10 Energy Capacity 250 Matter Stores 400 Matter Capacity 400 Sight Range 16 Terrain Scan Density 10 Resistance: KI 20 Resistance: TH 10 Evasion (%) 62 Item Schematics ----------------- None Robot Schematics ------------------ None Fabricated ------------ Nothing Alien Tech Used ----------------- None Achievements -------------- None Challenges ------------ None RPGLIKE | -11 -10 -9 --------- Run | Scr Mat Mat Levels Raised 2 | . . 2 XP Earned 6070 | 3000 770 2300 XP Spent 4460 | . 3000 1460 Upgrades 14 | . 8 6 Core Integrity 2 | . . 2 Mass Support 2 | . 2 . Melee Accuracy 4 | . . 4 KI Resistance % 4 | . 4 . TH Resistance % 2 | . 2 . Protomatter Created 98 | . 54 44 Integrity Restored 186 | . 162 24 Core 186 | . 162 24 Protomatter Decayed . | . . . Game ------ Seed EnhancedReactionThrower Manual? 0 Play Time 00:16:23 Cumulative 30.0 hours Start 2020.01.08 @ 22:53:52 End 2020.01.08 @ 23:13:00 Sessions 1 Manual Loads 0 Difficulty Rogue Special Mode Winter2019/RPGLIKE Game No. 31 Rogue 31 Adventurer 0 Explorer 0 Win Type - Total 0 Types 0/0/0/0/0/0/0 Lore% 25 Gallery% 30 Achievement% 37 Wizard Run 0 Options --------- ASCII 0 Keyboard 0 Movement Mouse Keybinds 0 Fullscreen 1 Font 18/SmallcapsGlow Map View 76x50 Tactical HUD 1 Map Filters NONE Filters NONE Steam 1 RUN: 7e5479d3-07b0-4eb6-a921-f328212d0021